[Event "FIDE World Rapid Chess Championship 2021"]
[White "Howell, David W L"]
[Black "Kosakowski, Jakub"]
[WhiteFideId "410608"]
[BlackFideId "1185080"]
[WhiteElo "2624"]
[BlackElo "2304"]
[Result "1-0"]
[Round "10"]
[TimeControl "900+10"]
[Date "2021.12.28"]
[WhiteClock "0:00:37"]
[BlackClock "0:00:48"]

1. c4 {[%clk 0:15:00]}  e6 {[%clk 0:14:38]} 2. g3 {[%clk 0:15:44]}  Nf6 {[%clk 0:14:38]} 3. Bg2 {[%clk 0:15:44]}  d5 {[%clk 0:14:38]} 4. Nf3 {[%clk 0:15:44]}  dxc4 {[%clk 0:14:38]} 5. Qa4+ {[%clk 0:15:44]}  Nbd7 {[%clk 0:14:38]} 6. Qxc4 {[%clk 0:15:44]}  a6 {[%clk 0:14:38]} 7. Qb3 {[%clk 0:15:44]}  c5 {[%clk 0:14:38]} 8. a4 {[%clk 0:15:44]}  Be7 {[%clk 0:14:38]} 9. a5 {[%clk 0:15:44]}  O-O {[%clk 0:14:38]} 10. d3 {[%clk 0:15:44]}  Nd5 {[%clk 0:11:42]} 11. Nc3 {[%clk 0:09:52]}  Nb4 {[%clk 0:11:42]} 12. O-O {[%clk 0:09:52]}  b5 {[%clk 0:11:42]} 13. axb6 {[%clk 0:09:52]}  Bb7 {[%clk 0:11:42]} 14. Be3 {[%clk 0:09:45]}  Nxb6 {[%clk 0:10:38]} 15. Rfc1 {[%clk 0:09:45]}  a5 {[%clk 0:08:21]} 16. Na4 {[%clk 0:08:54]}  Bd5 {[%clk 0:08:21]} 17. Qd1 {[%clk 0:06:53]}  Nxa4 {[%clk 0:08:21]} 18. Qxa4 {[%clk 0:06:53]}  Qb6 {[%clk 0:08:21]} 19. Ne5 {[%clk 0:05:21]}  Rfc8 {[%clk 0:06:58]} 20. Bxd5 {[%clk 0:05:21]}  exd5 {[%clk 0:05:39]} 21. Nd7 {[%clk 0:05:21]}  Qa7 {[%clk 0:04:35]} 22. Qb5 {[%clk 0:02:32]}  d4 {[%clk 0:02:24]} 23. Bd2 {[%clk 0:02:30]}  Nc6 {[%clk 0:02:24]} 24. Nb6 {[%clk 0:00:28]}  Qb7 {[%clk 0:02:24]} 25. Rxc5 {[%clk 0:00:28]}  Bxc5 {[%clk 0:00:12]} 26. Qxc5 {[%clk 0:00:16]}  Qa7 {[%clk 0:00:12]} 27. Rc1 {[%clk 0:00:16]}  Qa6 {[%clk 0:00:12]} 28. Nxa8 {[%clk 0:00:37]}  Qxa8 {[%clk 0:00:48]} 29. Qd5 {[%clk 0:00:37]}  h6 {[%clk 0:00:48]} 30. Rc5 {[%clk 0:00:37]}  Qb7 {[%clk 0:00:48]} 31. Bxa5 {[%clk 0:00:37]}  Qxb2 {[%clk 0:00:48]} 32. Rxc6 {[%clk 0:00:37]}  Rxc6 {[%clk 0:00:48]} 33. Qxc6 {[%clk 0:00:37]}  Qa1+ {[%clk 0:00:48]} 34. Kg2 {[%clk 0:00:37]}  Qxa5 {[%clk 0:00:48]} 35. Qe8+ {[%clk 0:00:37]}  Kh7 {[%clk 0:00:48]} 36. Qe4+ {[%clk 0:00:37]}  Kg8 {[%clk 0:00:48]} 37. Qxd4 {[%clk 0:00:37]} 1-0


[Site "http://www.Chess.com"]

[Event "FIDE World Rapid Chess Championship 2021"]
[White "Tari, Aryan"]
[Black "Kovalev, Vladislav"]
[WhiteFideId "1510045"]
[BlackFideId "13504398"]
[WhiteElo "2542"]
[BlackElo "2647"]
[Result "1/2-1/2"]
[Round "10"]
[TimeControl "900+10"]
[Date "2021.12.28"]
[WhiteClock "0:01:33"]
[BlackClock "0:00:08"]

1. e4 {[%clk 0:15:00]}  e5 {[%clk 0:15:00]} 2. Nf3 {[%clk 0:15:00]}  Nc6 {[%clk 0:15:00]} 3. Bb5 {[%clk 0:15:00]}  a6 {[%clk 0:15:00]} 4. Ba4 {[%clk 0:15:00]}  Nf6 {[%clk 0:14:15]} 5. Nc3 {[%clk 0:16:02]}  b5 {[%clk 0:14:15]} 6. Bb3 {[%clk 0:16:02]}  Bc5 {[%clk 0:14:15]} 7. a4 {[%clk 0:16:02]}  Rb8 {[%clk 0:14:15]} 8. O-O {[%clk 0:16:02]}  d6 {[%clk 0:14:15]} 9. Nd5 {[%clk 0:16:02]}  Nxd5 {[%clk 0:14:15]} 10. Bxd5 {[%clk 0:15:24]}  Nd4 {[%clk 0:14:15]} 11. b4 {[%clk 0:13:45]}  Bb6 {[%clk 0:10:58]} 12. Nxd4 {[%clk 0:13:45]}  Bxd4 {[%clk 0:10:58]} 13. c3 {[%clk 0:12:01]}  Bb6 {[%clk 0:10:43]} 14. d4 {[%clk 0:12:01]}  O-O {[%clk 0:10:43]} 15. Be3 {[%clk 0:12:01]}  Qe8 {[%clk 0:10:43]} 16. a5 {[%clk 0:10:58]}  Ba7 {[%clk 0:08:16]} 17. Qd3 {[%clk 0:09:26]}  Bb7 {[%clk 0:08:16]} 18. Bxb7 {[%clk 0:09:21]}  Rxb7 {[%clk 0:06:27]} 19. Rae1 {[%clk 0:09:21]}  c5 {[%clk 0:04:18]} 20. dxc5 {[%clk 0:08:08]}  dxc5 {[%clk 0:04:18]} 21. Qd6 {[%clk 0:08:08]}  Qe6 {[%clk 0:04:26]} 22. Bxc5 {[%clk 0:06:33]}  Bxc5 {[%clk 0:03:04]} 23. Qxc5 {[%clk 0:04:40]}  Rc8 {[%clk 0:03:04]} 24. Rd1 {[%clk 0:04:40]}  g6 {[%clk 0:03:04]} 25. Qd6 {[%clk 0:04:12]}  Qxd6 {[%clk 0:01:42]} 26. Rxd6 {[%clk 0:04:12]}  Rxc3 {[%clk 0:01:42]} 27. Rxa6 {[%clk 0:04:12]}  Rc4 {[%clk 0:01:42]} 28. Rb1 {[%clk 0:04:12]}  Rbc7 {[%clk 0:00:58]} 29. f3 {[%clk 0:02:16]}  Rc2 {[%clk 0:00:58]} 30. Rb6 {[%clk 0:02:16]}  Ra2 {[%clk 0:00:26]} 31. Kh1 {[%clk 0:01:25]}  Rb2 {[%clk 0:00:26]} 32. Ra1 {[%clk 0:01:25]}  Rcc2 {[%clk 0:00:08]} 33. a6 {[%clk 0:01:33]}  Rxg2 {[%clk 0:00:08]} 34. a7 {[%clk 0:01:33]} 1/2-1/2


[Site "http://www.Chess.com"]

[Event "FIDE World Rapid Chess Championship 2021"]
[White "Moroni, Luca Jr"]
[Black "Riazantsev, Alexander"]
[WhiteFideId "865834"]
[BlackFideId "4125029"]
[WhiteElo "2519"]
[BlackElo "2632"]
[Result "0-1"]
[Round "10"]
[TimeControl "900+10"]
[Date "2021.12.28"]
[WhiteClock "0:00:42"]
[BlackClock "0:00:28"]

1. c4 {[%clk 0:15:00]}  e6 {[%clk 0:15:00]} 2. Nc3 {[%clk 0:15:00]}  d5 {[%clk 0:15:26]} 3. d4 {[%clk 0:15:12]}  Bb4 {[%clk 0:15:26]} 4. cxd5 {[%clk 0:15:12]}  exd5 {[%clk 0:15:26]} 5. Bf4 {[%clk 0:15:12]}  c6 {[%clk 0:15:26]} 6. e3 {[%clk 0:15:12]}  Bf5 {[%clk 0:15:26]} 7. Ne2 {[%clk 0:15:12]}  Ne7 {[%clk 0:12:10]} 8. Qb3 {[%clk 0:15:12]}  Qb6 {[%clk 0:12:10]} 9. a3 {[%clk 0:12:39]}  Ba5 {[%clk 0:11:48]} 10. Qa2 {[%clk 0:12:39]}  Qd8 {[%clk 0:11:48]} 11. b4 {[%clk 0:11:20]}  Bb6 {[%clk 0:11:51]} 12. Ng3 {[%clk 0:11:20]}  Be6 {[%clk 0:11:33]} 13. Bd3 {[%clk 0:08:03]}  Ng6 {[%clk 0:11:33]} 14. Nce2 {[%clk 0:08:03]}  Nd7 {[%clk 0:11:33]} 15. O-O {[%clk 0:07:48]}  O-O {[%clk 0:10:24]} 16. Rac1 {[%clk 0:07:48]}  Re8 {[%clk 0:10:24]} 17. Qb2 {[%clk 0:07:48]}  a6 {[%clk 0:10:05]} 18. a4 {[%clk 0:05:18]}  Nf6 {[%clk 0:10:05]} 19. b5 {[%clk 0:05:26]}  cxb5 {[%clk 0:07:13]} 20. axb5 {[%clk 0:05:26]}  a5 {[%clk 0:07:13]} 21. Bg5 {[%clk 0:05:26]}  h6 {[%clk 0:07:13]} 22. Bxf6 {[%clk 0:05:26]}  Qxf6 {[%clk 0:07:13]} 23. Bxg6 {[%clk 0:05:26]}  fxg6 {[%clk 0:07:13]} 24. Nf4 {[%clk 0:05:26]}  Bf7 {[%clk 0:07:13]} 25. Nd3 {[%clk 0:04:02]}  h5 {[%clk 0:07:20]} 26. Ne2 {[%clk 0:04:02]}  h4 {[%clk 0:07:20]} 27. Ne5 {[%clk 0:04:02]}  g5 {[%clk 0:07:20]} 28. f4 {[%clk 0:04:02]}  Be6 {[%clk 0:06:48]} 29. Nc3 {[%clk 0:03:13]}  a4 {[%clk 0:05:54]} 30. Qa2 {[%clk 0:02:34]}  gxf4 {[%clk 0:05:54]} 31. Rxf4 {[%clk 0:02:34]}  Qxe5 {[%clk 0:03:32]} 32. dxe5 {[%clk 0:01:31]}  Bxe3+ {[%clk 0:03:32]} 33. Kh1 {[%clk 0:01:31]}  d4 {[%clk 0:03:32]} 34. Nd5 {[%clk 0:01:31]}  Bxf4 {[%clk 0:01:27]} 35. Rc7 {[%clk 0:01:43]}  Bxe5 {[%clk 0:01:27]} 36. Rxb7 {[%clk 0:00:28]}  Rad8 {[%clk 0:00:26]} 37. Re7 {[%clk 0:00:28]}  Rf8 {[%clk 0:00:26]} 38. Qb1 {[%clk 0:00:28]}  Bxd5 {[%clk 0:00:26]} 39. Rxe5 {[%clk 0:00:28]}  h3 {[%clk 0:00:26]} 40. Kg1 {[%clk 0:00:28]}  hxg2 {[%clk 0:00:26]} 41. Rxd5 {[%clk 0:00:28]}  Rxd5 {[%clk 0:00:26]} 42. Qa2 {[%clk 0:00:28]}  Rd8 {[%clk 0:00:26]} 43. b6 {[%clk 0:00:28]}  Kh8 {[%clk 0:00:26]} 44. b7 {[%clk 0:00:28]}  Rb5 {[%clk 0:00:26]} 45. Qf2 {[%clk 0:00:28]}  Kg8 {[%clk 0:00:26]} 46. Qh4 {[%clk 0:00:28]}  Rb8 {[%clk 0:00:26]} 47. Qxd4 {[%clk 0:00:28]}  R5xb7 {[%clk 0:00:26]} 48. Qxa4 {[%clk 0:00:28]}  Rf7 {[%clk 0:00:37]} 49. Kxg2 {[%clk 0:00:16]}  Rf6 {[%clk 0:00:37]} 50. Qc4+ {[%clk 0:00:16]}  Kh8 {[%clk 0:00:37]} 51. Qh4+ {[%clk 0:00:16]}  Rh6 {[%clk 0:00:37]} 52. Qd4 {[%clk 0:00:16]}  Rf8 {[%clk 0:00:37]} 53. h4 {[%clk 0:00:16]}  Rg6+ {[%clk 0:00:37]} 54. Kh2 {[%clk 0:00:16]}  Rgf6 {[%clk 0:00:37]} 55. Kg3 {[%clk 0:00:16]}  Rg6+ {[%clk 0:00:37]} 56. Kh2 {[%clk 0:00:16]}  Re8 {[%clk 0:00:37]} 57. Qc4 {[%clk 0:00:16]}  Rge6 {[%clk 0:00:37]} 58. Qd5 {[%clk 0:00:16]}  Re5 {[%clk 0:00:37]} 59. Qf7 {[%clk 0:00:16]}  R8e7 {[%clk 0:00:37]} 60. Qf3 {[%clk 0:00:16]}  Re2+ {[%clk 0:00:37]} 61. Kg1 {[%clk 0:00:16]}  R7e5 {[%clk 0:00:37]} 62. Qd3 {[%clk 0:00:16]}  R2e3 {[%clk 0:00:19]} 63. Qg6 {[%clk 0:00:03]}  R3e4 {[%clk 0:00:19]} 64. Qd6 {[%clk 0:00:03]}  Rh5 {[%clk 0:00:19]} 65. Kg2 {[%clk 0:00:03]}  Rhxh4 {[%clk 0:00:19]} 66. Kg3 {[%clk 0:00:03]}  Kh7 {[%clk 0:00:19]} 67. Qd5 {[%clk 0:00:03]}  Reg4+ {[%clk 0:00:19]} 68. Kf3 {[%clk 0:00:03]}  Rf4+ {[%clk 0:00:19]} 69. Ke3 {[%clk 0:00:03]}  Rf6 {[%clk 0:00:19]} 70. Qd7 {[%clk 0:00:03]}  Kh6 {[%clk 0:00:19]} 71. Qc8 {[%clk 0:00:03]}  Kh7 {[%clk 0:00:19]} 72. Qd7 {[%clk 0:00:03]}  Rh5 {[%clk 0:00:19]} 73. Qc7 {[%clk 0:00:03]}  Rhf5 {[%clk 0:00:19]} 74. Qh2+ {[%clk 0:00:03]}  Kg8 {[%clk 0:00:19]} 75. Qb8+ {[%clk 0:00:03]}  Rf8 {[%clk 0:00:19]} 76. Qb3+ {[%clk 0:00:03]}  Kh7 {[%clk 0:00:19]} 77. Qe6 {[%clk 0:00:03]}  Rf3+ {[%clk 0:00:50]} 78. Ke2 {[%clk 0:00:30]}  Rf2+ {[%clk 0:00:50]} 79. Ke1 {[%clk 0:00:30]}  R8f5 {[%clk 0:00:50]} 80. Qc8 {[%clk 0:00:30]}  g6 {[%clk 0:00:50]} 81. Qb7+ {[%clk 0:00:30]}  Rf7 {[%clk 0:00:50]} 82. Qh1+ {[%clk 0:00:30]}  Kg7 {[%clk 0:00:50]} 83. Qc6 {[%clk 0:00:30]}  R2f6 {[%clk 0:00:50]} 84. Qe8 {[%clk 0:00:30]}  g5 {[%clk 0:00:50]} 85. Ke2 {[%clk 0:00:30]}  Rf2+ {[%clk 0:00:50]} 86. Ke1 {[%clk 0:00:30]}  R2f5 {[%clk 0:00:50]} 87. Qe4 {[%clk 0:00:30]}  Kh6 {[%clk 0:00:50]} 88. Qh1+ {[%clk 0:00:30]}  Kg6 {[%clk 0:00:50]} 89. Qc6+ {[%clk 0:00:30]}  Kg7 {[%clk 0:01:06]} 90. Qe4 {[%clk 0:01:21]}  Rf1+ {[%clk 0:01:06]} 91. Ke2 {[%clk 0:01:21]}  R7f2+ {[%clk 0:01:06]} 92. Kd3 {[%clk 0:01:21]}  Rf3+ {[%clk 0:01:06]} 93. Ke2 {[%clk 0:01:21]}  R3f2+ {[%clk 0:01:06]} 94. Kd3 {[%clk 0:01:21]}  Rf5 {[%clk 0:01:06]} 95. Ke2 {[%clk 0:01:21]}  R1f4 {[%clk 0:01:06]} 96. Qb7+ {[%clk 0:01:21]}  Kh6 {[%clk 0:01:06]} 97. Qh1+ {[%clk 0:01:21]}  Kg6 {[%clk 0:01:06]} 98. Qc6+ {[%clk 0:01:21]}  Kh5 {[%clk 0:01:06]} 99. Qh1+ {[%clk 0:01:21]}  Rh4 {[%clk 0:01:06]} 100. Qc6 {[%clk 0:01:21]}  Rh2+ {[%clk 0:01:16]} 101. Ke3 {[%clk 0:01:53]}  Rf4 {[%clk 0:01:16]} 102. Qe6 {[%clk 0:01:53]}  Rhh4 {[%clk 0:01:16]} 103. Qd7 {[%clk 0:01:53]}  Rf6 {[%clk 0:01:16]} 104. Qh7+ {[%clk 0:01:05]}  Kg4 {[%clk 0:00:20]} 105. Qe4+ {[%clk 0:01:05]}  Rf4 {[%clk 0:00:20]} 106. Qg2+ {[%clk 0:01:05]}  Kh5 {[%clk 0:00:20]} 107. Qb7 {[%clk 0:01:05]}  Rh3+ {[%clk 0:00:20]} 108. Ke2 {[%clk 0:01:05]}  Kh4 {[%clk 0:00:20]} 109. Qh7+ {[%clk 0:01:05]}  Kg3 {[%clk 0:00:20]} 110. Qd3+ {[%clk 0:01:05]}  Kh2 {[%clk 0:00:20]} 111. Qd6 {[%clk 0:01:05]}  Rg3 {[%clk 0:00:20]} 112. Qe5 {[%clk 0:01:05]}  Rff3 {[%clk 0:00:20]} 113. Qh8+ {[%clk 0:00:42]}  Kg2 {[%clk 0:00:28]} 114. Qa8 {[%clk 0:00:42]}  g4 {[%clk 0:00:28]} 115. Qe4 {[%clk 0:00:42]}  Kg1 {[%clk 0:00:28]} 116. Qb1+ {[%clk 0:00:42]}  Kh2 {[%clk 0:00:28]} 117. Qh7+ {[%clk 0:00:42]}  Rh3 {[%clk 0:00:28]} 118. Qc7+ {[%clk 0:00:42]}  Kg2 {[%clk 0:00:28]} 119. Qc6 {[%clk 0:00:42]}  Rh2 {[%clk 0:00:28]} 120. Qc1 {[%clk 0:00:42]}  Kg3+ {[%clk 0:00:28]} 0-1


[Site "http://www.Chess.com"]

[Event "FIDE World Rapid Chess Championship 2021"]
[White "Czarnota, Pawel"]
[Black "Vidit, Santosh Gujrathi"]
[WhiteFideId "1121219"]
[BlackFideId "5029465"]
[WhiteElo "2511"]
[BlackElo "2629"]
[Result "1/2-1/2"]
[Round "10"]
[TimeControl "900+10"]
[Date "2021.12.28"]
[WhiteClock "0:01:37"]
[BlackClock "0:01:19"]

1. e4 {[%clk 0:15:00]}  e5 {[%clk 0:15:00]} 2. Nf3 {[%clk 0:15:00]}  Nc6 {[%clk 0:15:34]} 3. Bb5 {[%clk 0:14:11]}  Nf6 {[%clk 0:15:34]} 4. O-O {[%clk 0:14:11]}  Nxe4 {[%clk 0:15:34]} 5. Re1 {[%clk 0:14:11]}  Nd6 {[%clk 0:15:34]} 6. Nxe5 {[%clk 0:14:11]}  Be7 {[%clk 0:15:34]} 7. Bf1 {[%clk 0:14:11]}  Nxe5 {[%clk 0:15:34]} 8. Rxe5 {[%clk 0:14:11]}  O-O {[%clk 0:15:34]} 9. d4 {[%clk 0:14:11]}  Bf6 {[%clk 0:15:34]} 10. Re1 {[%clk 0:14:11]}  Re8 {[%clk 0:15:34]} 11. c3 {[%clk 0:14:11]}  Rxe1 {[%clk 0:16:12]} 12. Qxe1 {[%clk 0:13:00]}  Ne8 {[%clk 0:16:12]} 13. Bf4 {[%clk 0:13:00]}  d5 {[%clk 0:16:12]} 14. Bd3 {[%clk 0:13:00]}  g6 {[%clk 0:16:12]} 15. Nd2 {[%clk 0:13:00]}  Ng7 {[%clk 0:16:12]} 16. Qe3 {[%clk 0:13:00]}  Bf5 {[%clk 0:16:12]} 17. Nf3 {[%clk 0:11:30]}  c6 {[%clk 0:15:38]} 18. Re1 {[%clk 0:08:29]}  Bxd3 {[%clk 0:15:09]} 19. Qxd3 {[%clk 0:08:29]}  Qd7 {[%clk 0:15:09]} 20. Be5 {[%clk 0:08:29]}  Bxe5 {[%clk 0:13:54]} 21. Nxe5 {[%clk 0:08:26]}  Qe6 {[%clk 0:13:54]} 22. Qd2 {[%clk 0:08:26]}  Re8 {[%clk 0:13:54]} 23. h3 {[%clk 0:08:15]}  f6 {[%clk 0:11:45]} 24. Nd3 {[%clk 0:08:15]}  Qf5 {[%clk 0:11:45]} 25. Rxe8+ {[%clk 0:08:15]}  Nxe8 {[%clk 0:11:45]} 26. Qe3 {[%clk 0:08:15]}  Kf7 {[%clk 0:11:05]} 27. g4 {[%clk 0:07:05]}  Qe4 {[%clk 0:11:05]} 28. Qxe4 {[%clk 0:07:02]}  dxe4 {[%clk 0:09:26]} 29. Nc5 {[%clk 0:07:02]}  Nd6 {[%clk 0:09:26]} 30. f3 {[%clk 0:07:02]}  exf3 {[%clk 0:09:16]} 31. Kf2 {[%clk 0:03:58]}  b6 {[%clk 0:09:16]} 32. Nd3 {[%clk 0:03:58]}  Ke6 {[%clk 0:08:10]} 33. Kxf3 {[%clk 0:04:06]}  g5 {[%clk 0:06:12]} 34. Ke3 {[%clk 0:04:14]}  Nc4+ {[%clk 0:06:12]} 35. Ke4 {[%clk 0:04:14]}  Nd6+ {[%clk 0:02:20]} 36. Ke3 {[%clk 0:03:56]}  a5 {[%clk 0:02:20]} 37. b3 {[%clk 0:03:56]}  h6 {[%clk 0:01:49]} 38. c4 {[%clk 0:02:43]}  b5 {[%clk 0:01:49]} 39. Nc5+ {[%clk 0:01:37]}  Ke7 {[%clk 0:01:19]} 40. Ne4 {[%clk 0:01:37]}  f5 {[%clk 0:01:19]} 41. Nxd6 {[%clk 0:01:37]}  f4+ {[%clk 0:01:19]} 42. Ke4 {[%clk 0:01:37]}  Kxd6 {[%clk 0:01:19]} 43. a4 {[%clk 0:01:37]}  bxc4 {[%clk 0:01:19]} 44. bxc4 {[%clk 0:01:37]}  Ke6 {[%clk 0:01:19]} 45. Kf3 {[%clk 0:01:37]}  Kd6 {[%clk 0:01:19]} 46. Ke4 {[%clk 0:01:37]} 1/2-1/2


[Site "http://www.Chess.com"]

[Event "FIDE World Rapid Chess Championship 2021"]
[White "Dreev, Aleksey"]
[Black "Klekowski, Maciej"]
[WhiteFideId "4100107"]
[BlackFideId "1132717"]
[WhiteElo "2621"]
[BlackElo "2528"]
[Result "1-0"]
[Round "10"]
[TimeControl "900+10"]
[Date "2021.12.28"]
[WhiteClock "0:00:36"]
[BlackClock "0:00:10"]

1. d4 {[%clk 0:15:00]}  Nf6 {[%clk 0:15:00]} 2. c4 {[%clk 0:15:00]}  e6 {[%clk 0:15:00]} 3. Nc3 {[%clk 0:15:00]}  Bb4 {[%clk 0:14:24]} 4. Qc2 {[%clk 0:16:02]}  d5 {[%clk 0:14:24]} 5. a3 {[%clk 0:16:02]}  Bxc3+ {[%clk 0:14:24]} 6. Qxc3 {[%clk 0:16:02]}  dxc4 {[%clk 0:14:24]} 7. Qxc4 {[%clk 0:16:02]}  O-O {[%clk 0:14:24]} 8. Bf4 {[%clk 0:16:02]}  Nd5 {[%clk 0:13:47]} 9. Bg3 {[%clk 0:14:15]}  b6 {[%clk 0:13:47]} 10. e4 {[%clk 0:14:15]}  Ba6 {[%clk 0:13:47]} 11. Qc2 {[%clk 0:14:15]}  Bxf1 {[%clk 0:13:47]} 12. Kxf1 {[%clk 0:14:15]}  Nf6 {[%clk 0:13:47]} 13. Ne2 {[%clk 0:14:15]}  c5 {[%clk 0:13:47]} 14. Rd1 {[%clk 0:12:32]}  Nbd7 {[%clk 0:13:12]} 15. f3 {[%clk 0:12:32]}  Qc8 {[%clk 0:11:48]} 16. Nc3 {[%clk 0:12:01]}  cxd4 {[%clk 0:11:48]} 17. Rxd4 {[%clk 0:12:01]}  e5 {[%clk 0:11:48]} 18. Rd1 {[%clk 0:12:01]}  Re8 {[%clk 0:08:11]} 19. Bf2 {[%clk 0:11:34]}  b5 {[%clk 0:06:27]} 20. Qe2 {[%clk 0:10:37]}  a6 {[%clk 0:06:27]} 21. g3 {[%clk 0:10:37]}  Nf8 {[%clk 0:03:50]} 22. Kg2 {[%clk 0:09:04]}  Ne6 {[%clk 0:03:50]} 23. Rd2 {[%clk 0:07:49]}  Rb8 {[%clk 0:02:33]} 24. Rc1 {[%clk 0:07:49]}  h6 {[%clk 0:02:33]} 25. Na2 {[%clk 0:07:02]}  Qb7 {[%clk 0:00:57]} 26. Nb4 {[%clk 0:07:02]}  Rbc8 {[%clk 0:00:57]} 27. Rdc2 {[%clk 0:07:02]}  Rxc2 {[%clk 0:00:57]} 28. Qxc2 {[%clk 0:07:02]}  Qd7 {[%clk 0:00:03]} 29. Rd1 {[%clk 0:06:20]}  Rc8 {[%clk 0:00:03]} 30. Rxd7 {[%clk 0:05:16]}  Rxc2 {[%clk 0:00:00]} 31. Ra7 {[%clk 0:05:16]}  Rxb2 {[%clk 0:00:00]} 32. Nd3 {[%clk 0:05:16]}  Rd2 {[%clk 0:00:29]} 33. Nxe5 {[%clk 0:02:25]}  Nc5 {[%clk 0:00:29]} 34. Kf1 {[%clk 0:02:25]}  Nd3 {[%clk 0:00:29]} 35. Be3 {[%clk 0:00:36]}  Nxe5 {[%clk 0:00:10]} 36. Bxd2 {[%clk 0:00:36]}  Nxf3 {[%clk 0:00:10]} 37. Bb4 {[%clk 0:00:36]}  Nxe4 {[%clk 0:00:10]} 38. Kg2 {[%clk 0:00:36]}  Nd4 {[%clk 0:00:10]} 39. Rxa6 {[%clk 0:00:36]}  f5 {[%clk 0:00:10]} 40. Ra7 {[%clk 0:00:36]}  g6 {[%clk 0:00:10]} 41. Rd7 {[%clk 0:00:36]}  Nc2 {[%clk 0:00:10]} 42. Kf3 {[%clk 0:00:36]}  g5 {[%clk 0:00:10]} 43. Ke2 {[%clk 0:00:36]}  Nf6 {[%clk 0:00:10]} 44. Rb7 {[%clk 0:00:36]}  Nd5 {[%clk 0:00:10]} 45. Bc5 {[%clk 0:00:36]}  Na1 {[%clk 0:00:10]} 46. Kd3 {[%clk 0:00:36]}  f4 {[%clk 0:00:10]} 47. Rxb5 {[%clk 0:00:36]}  Nc7 {[%clk 0:00:10]} 48. Rb8+ {[%clk 0:00:36]} 1-0


[Site "http://www.Chess.com"]

[Event "FIDE World Rapid Chess Championship 2021"]
[White "Nihal, Sarin"]
[Black "Erdos, Viktor"]
[WhiteFideId "25092340"]
[BlackFideId "719978"]
[WhiteElo "2500"]
[BlackElo "2601"]
[Result "1-0"]
[Round "10"]
[TimeControl "900+10"]
[Date "2021.12.28"]
[WhiteClock "0:01:16"]
[BlackClock "0:00:46"]

1. e4 {[%clk 0:15:00]}  e5 {[%clk 0:15:00]} 2. Nf3 {[%clk 0:15:00]}  Nc6 {[%clk 0:15:00]} 3. Bc4 {[%clk 0:15:00]}  Nf6 {[%clk 0:15:39]} 4. d3 {[%clk 0:15:20]}  Be7 {[%clk 0:15:39]} 5. O-O {[%clk 0:15:20]}  O-O {[%clk 0:15:39]} 6. a4 {[%clk 0:15:20]}  a5 {[%clk 0:15:39]} 7. h3 {[%clk 0:15:20]}  d6 {[%clk 0:15:39]} 8. c3 {[%clk 0:15:20]}  Be6 {[%clk 0:15:39]} 9. Bxe6 {[%clk 0:15:20]}  fxe6 {[%clk 0:15:39]} 10. Be3 {[%clk 0:15:20]}  h6 {[%clk 0:15:39]} 11. Nbd2 {[%clk 0:15:20]}  d5 {[%clk 0:14:18]} 12. Qb3 {[%clk 0:15:20]}  Qd7 {[%clk 0:14:18]} 13. d4 {[%clk 0:11:58]}  exd4 {[%clk 0:11:05]} 14. Nxd4 {[%clk 0:09:34]}  Nxd4 {[%clk 0:11:05]} 15. Bxd4 {[%clk 0:09:34]}  c5 {[%clk 0:11:05]} 16. Bxf6 {[%clk 0:09:34]}  c4 {[%clk 0:11:05]} 17. Qd1 {[%clk 0:09:34]}  Rxf6 {[%clk 0:11:05]} 18. exd5 {[%clk 0:09:34]}  exd5 {[%clk 0:11:05]} 19. Nxc4 {[%clk 0:09:34]}  Bc5 {[%clk 0:11:05]} 20. Ne5 {[%clk 0:09:34]}  Qd6 {[%clk 0:10:45]} 21. Ng4 {[%clk 0:08:20]}  Rf4 {[%clk 0:10:45]} 22. Qb3 {[%clk 0:08:20]}  Raf8 {[%clk 0:10:27]} 23. Rad1 {[%clk 0:07:08]}  R8f5 {[%clk 0:10:27]} 24. Rd3 {[%clk 0:03:10]}  Qb6 {[%clk 0:04:53]} 25. Qxb6 {[%clk 0:03:10]}  Bxb6 {[%clk 0:04:53]} 26. b3 {[%clk 0:03:10]}  d4 {[%clk 0:04:53]} 27. cxd4 {[%clk 0:03:10]}  Bxd4 {[%clk 0:04:53]} 28. g3 {[%clk 0:03:10]}  Re4 {[%clk 0:05:24]} 29. Kg2 {[%clk 0:02:07]}  Bc5 {[%clk 0:05:24]} 30. f4 {[%clk 0:02:07]}  Re2+ {[%clk 0:00:28]} 31. Kf3 {[%clk 0:01:38]}  Rb2 {[%clk 0:00:28]} 32. Ne5 {[%clk 0:01:38]}  b6 {[%clk 0:00:28]} 33. Kg4 {[%clk 0:01:16]}  Rf6 {[%clk 0:00:46]} 34. h4 {[%clk 0:01:16]}  g6 {[%clk 0:00:46]} 35. Rfd1 {[%clk 0:01:16]}  Be7 {[%clk 0:00:46]} 36. Rd7 {[%clk 0:01:16]}  h5+ {[%clk 0:00:46]} 37. Kg5 {[%clk 0:01:16]}  Re6+ {[%clk 0:00:46]} 38. Rxe7 {[%clk 0:01:16]}  Rxe7 {[%clk 0:00:46]} 39. Kf6 {[%clk 0:01:16]}  Rg7 {[%clk 0:00:46]} 40. Rd8+ {[%clk 0:01:16]}  Kh7 {[%clk 0:00:46]} 41. Nf3 {[%clk 0:01:16]}  Rg8 {[%clk 0:00:46]} 42. Ng5+ {[%clk 0:01:16]}  Kh8 {[%clk 0:00:46]} 43. Rd7 {[%clk 0:01:16]}  Rc8 {[%clk 0:00:46]} 44. Rh7+ {[%clk 0:01:16]}  Kg8 {[%clk 0:00:46]} 45. Rg7+ {[%clk 0:01:16]}  Kf8 {[%clk 0:00:46]} 46. Ne6+ {[%clk 0:01:16]}  Ke8 {[%clk 0:00:46]} 47. Re7# {[%clk 0:01:16]} 1-0


[Site "http://www.Chess.com"]